Cogmind - Beta 16 @@@ ROGUE MODE // 2025.10.23 @ 16:33:30 Player: Visionary Result: Destroyed by as-84013 with Assembled Maul Performance ------------- Evolutions (0) 0 Regions Visited (2) 400 Robots Destroyed (11) 55 Value Destroyed (113) 113 Prototype IDs (0) 0 Alien Tech Used (0) 0 Bonus (0) 0 TOTAL SCORE: 568 Bonus ------- None Cogmind --------- Core Integrity 0/250 Matter 236/300 Energy 70/100 System Corruption 8% Temperature Cool (0) Movement Rolling (80) Location -10/Mines Parts ------- > --- POWER (1) -------- (None) > --- PROPULSION (2) --- Wheel Wheel > --- UTILITY (2) ------ (None) > --- WEAPON (2) ------- Light Assault Rifle > --- INVENTORY (5) ---- Light Ion Engine High-capacity Matter Pod (0) Improved Terrain Scanner Peak State ------------ > --- POWER ------------ Ion Engine > --- PROPULSION ------- Aluminum Leg Aluminum Leg > --- UTILITY ---------- Small Storage Unit Improved Terrain Scanner > --- WEAPON ----------- Assault Rifle Light Assault Rifle > --- INVENTORY -------- Light Ion Engine Light Treads Light Treads Wheel Wheel Light Assault Rifle [Rating: 9] Favorites ----------- Power Ion Engine Engine Ion Engine Propulsion Aluminum Leg Leg Aluminum Leg Wheel Wheel Utility Small Storage Unit Device Improved Terrain Scanner Storage Small Storage Unit Protection Light Armor Plating Weapon Light Assault Rifle Ballistic Gun Light Assault Rifle Build | -11 -10 -10 ------- Run | Yrd Mat Min Slots Evolved . | . . . Power . | . . . Propulsion . | . . . Utility . | . . . Weapon . | . . . Parts Attached 13 | 7 2 4 Power 1 | 1 . . Engine 1 | 1 . . Core . | . . . Reactor . | . . . Propulsion 4 | 2 . 2 Treads . | . . . Leg 2 | 2 . . Wheel 2 | . . 2 Hover . | . . . Flight . | . . . Utility 4 | 2 2 . Device 1 | 1 . . Storage 1 | 1 . . Processor . | . . . Hackware . | . . . Protection 2 | . 2 . Artifact . | . . . Weapon 4 | 2 . 2 Energy Gun . | . . . Energy Cannon . | . . . Ballistic Gun 4 | 2 . 2 Ballistic Cannon . | . . . Launcher . | . . . Special Weapon . | . . . Impact Weapon . | . . . Slashing Weapon . | . . . Piercing Weapon . | . . . Special Melee Weapon . | . . . Unidentified Prototypes . | . . . Parts Lost 7 | . . 7 Power 1 | . . 1 Propulsion 2 | . . 2 Utility 2 | . . 2 Weapon 2 | . . 2 Highest Loss Streak 7 | . . 7 To Critical Strikes . | . . . Average Backups 5 | 4 6 5 Power 1 | 1 1 1 Propulsion 2 | 2 2 2 Utility 1 | . 1 2 Weapon . | . 1 . Tool/Special . | . . . Unused Backups 4 | . 2 2 Power 1 | . . 1 Propulsion 2 | . 2 . Utility 1 | . . 1 Weapon . | . . . Tool/Special . | . . . Average Slot Usage (%) 97 | . 100 94 Engine 13 | . 14 13 Leg 27 | . 28 25 Storage 13 | . 14 13 Protection 12 | . 13 12 Ballistic Gun 27 | . 28 27 Peak Build Rating 9 | 9 9 7 Average Rating 6 | 4 7 6 On Entrance 5 | . 9 7 Avg Prop Armor Cover (%) . | . . . Naked Turns . | . . . Heaviest Build 16 | 14 16 16 Greatest Support 20 | 20 20 20 Greatest Overweight (x) . | . . . Average Overweight (x) . | . . . Largest Inventory Capacity 8 | 8 8 8 Average Capacity 7 | 7 8 7 Most Carried 8 | 7 8 7 Average Carried 5 | 4 6 5 Final Capacity 8 | 8 8 5 Final Carried 6 | 6 6 3 Class Distribution -------------------- 100% | Mutant Dominant Class ---------------- Mutant | -10/Materials Mutant | -10/Mines Resources | -11 -10 -10 ----------- Run | Yrd Mat Min Matter Collected 399 | 216 94 89 Remotely . | . . . Salvage Created 193 | 27 116 50 Parts 20 | 5 11 4 Haulers Intercepted . | . . . Recyclers Shooed . | . . . Parts Field Recycled . | . . . Retrieved Matter . | . . . Parts Self-Destructed . | . . . Prevented . | . . . Parts Restored . | . . . Kills | -11 -10 -10 ------- Run | Yrd Mat Min Combat Hostiles Destroyed 10 | . 6 4 Guns 10 | . 6 4 Classes Destroyed 4 | 1 2 1 Tunneler 1 | 1 . . Watcher 1 | . 1 . Swarmer 9 | . 6 3 Assembled 1 | . . 1 Best Kill Streak 5 | 1 5 3 Combat Bots Only 5 | . 5 3 Max Kills in Single Turn 1 | 1 1 1 Gunslinging . | . . . Exploded . | . . . Melee . | . . . Uniques/NPCs Destroyed . | . . . Combat | -11 -10 -10 -------- Run | Yrd Mat Min Hostile Shots Fired 98 | . 38 60 Missed 24 | . 9 15 Hits 74 | . 29 45 Melee 8 | . . 8 Projectile 66 | . 29 37 AOE 9 | . . 9 Part Disruptions 1 | . . 1 Damage Taken 1073 | . 240 833 Core 264 | . 41 223 Absorbed by Shields . | . . . Core Remaining (%) 100 | 100 . . Volleys Fired 50 | 3 25 22 Largest 2 | 2 2 2 Hottest 40 | 40 40 40 Shots Fired 94 | 6 50 38 Gun 94 | 6 50 38 Cannon . | . . . Launcher . | . . . Special . | . . . Kinetic 94 | 6 50 38 Thermal . | . . . Explosive . | . . . Electromagnetic . | . . . Robot Hit Streak 9 | 3 9 3 Robot Miss Streak 5 | 1 4 5 Penetration Max . | . . . Secondary Targets 5 | . 3 2 Max Gunslinging Chain 1 | . 1 1 Shots Hit Robots 56 | 4 29 23 Core Hits 21 | 1 10 10 Critical Kills . | . . . Critical Parts Destroyed . | . . . Critical Strikes . | . . . Melee Attacks . | . . . Impact . | . . . Slashing . | . . . Piercing . | . . . Sneak Attacks . | . . . Combat Hostiles . | . . . Follow-up Attacks . | . . . Damage Inflicted 571 | 44 304 223 Guns 571 | 44 304 223 Cannons . | . . . Explosions . | . . . Melee . | . . . Ramming . | . . . Kinetic 571 | 44 304 223 Thermal . | . . . Explosive . | . . . Electromagnetic . | . . . Impact . | . . . Slashing . | . . . Piercing . | . . . Highest Corruption 8 | . . 8 Average Corruption 4 | . . 4 Corruption Purged . | . . . Corruption Blocked . | . . . Overload Shots . | . . . Overflow Damage . | . . . Projectiles . | . . . Explosions . | . . . Melee . | . . . Knockbacks . | . . . Impact . | . . . Kinetic . | . . . Secondary . | . . . Self-Inflicted Damage . | . . . Shots . | . . . Rammed . | . . . Targets Rammed . | . . . Kicked . | . . . Crushed . | . . . Highest Temperature 20 | . 12 20 Average Temperature 6 | . 5 8 Received Heat Transfer 140 | . . 140 Siege Activations . | . . . Martial Activations . | . . . Shielding Activations . | . . . Robots Disrupted . | . . . Combat Hostiles . | . . . Robots Corrupted . | . . . Combat Hostiles . | . . . Parts Fried . | . . . Impact Corruptions . | . . . Robots Melted . | . . . Combat Hostiles . | . . . Parts Melted . | . . . Heat Transferred . | . . . Parts Sabotaged . | . . . Parts Stolen . | . . . Parts Stripped . | . . . Power Chain Reactions . | . . . Alert | -11 -10 -10 ------- Run | Yrd Mat Min Maximum Alert Level . | . . . Low Security (%) 100 | 100 100 100 Level 1 . | . . . Level 2 . | . . . Level 3 . | . . . Level 4 . | . . . Level 5 . | . . . High Security . | . . . Max Security . | . . . Peak Influence 135 | 5 135 60 Initial 10 | . 3 10 Average 33 | . 49 16 Influence Increases 246 | 5 171 70 Destroy 0b10 Robot/C 180 | . 120 60 Destroy 0b10 Robot/NC 10 | 5 5 . Destroy Leader 32 | . 22 10 Successful Hack 9 | . 9 . Lose Combat Pursuer 15 | . 15 . Influence Decreases 246 | . 149 97 Entered New Map 19 | . 2 17 Time Decay 227 | . 147 80 Squads Dispatched 2 | . 2 . Investigation . | . . . Extermination . | . . . Reinforcement 2 | . 2 . Assault . | . . . Garrison . | . . . Intercept . | . . . Searches Triggered . | . . . Construction Impeded . | . . . Haulers Reinforced . | . . . Active Scanning Responses . | . . . Cargo Convoy Interrupts . | . . . Stealth | -11 -10 -10 --------- Run | Yrd Mat Min Distress Signals . | . . . Communications Jammed . | . . . Distress Signals . | . . . Times Spotted 30 | . 12 18 Peak Tracking Total 13 | . 6 13 Tactical Retreats 1 | . 1 . Traps | -11 -10 -10 ------- Run | Yrd Mat Min Traps Triggered . | . . . Indirectly . | . . . Trap Hack Attempts . | . . . Triggered . | . . . Disarmed . | . . . Reprogrammed . | . . . Reused . | . . . Traps Extracted . | . . . Installed . | . . . Triggered . | . . . Machines | -11 -10 -10 ---------- Run | Yrd Mat Min Machines Disabled . | . . . Max in Single Turn . | . . . Machines Repaired . | . . . Machines Dismantled . | . . . Machines Sabotaged . | . . . Overloaded Fab Kills . | . . . Hacking | -11 -10 -10 --------- Run | Yrd Mat Min Machines Accessed 1 | . 1 . Terminals 1 | . 1 . Fabricators . | . . . Repair Stations . | . . . Recycling Units . | . . . Scanalyzers . | . . . Garrison Access . | . . . Total Hacks 3 | . 3 . Successful 3 | . 3 . Failed . | . . . Catastrophic . | . . . Database Lockouts . | . . . Manual . | . . . Terminals 3 | . 3 . Fabricators . | . . . Repair Stations . | . . . Recycling Units . | . . . Scanalyzers . | . . . Garrison Access . | . . . Terminal Hacks 3 | . 3 . Emergency Access Points 1 | . 1 . Dispatch Records 1 | . 1 . Transport Status 1 | . 1 . Fabricator Hacks . | . . . Repair Station Hacks . | . . . Recycling Unit Hacks . | . . . Scanalyzer . | . . . Garrison Access Hacks . | . . . Unauthorized Hacks . | . . . Terminals . | . . . Fabricators . | . . . Repair Stations . | . . . Recycling Units . | . . . Scanalyzers . | . . . Garrison Access . | . . . Data Cores Recovered . | . . . Used . | . . . Hacking Detections . | . . . Full Trace Events . | . . . Feedback Events . | . . . Feedback Blocked . | . . . Robot Schematics Acquired . | . . . Robots Built . | . . . Authchips . | . . . Time . | . . . Total Robot Build Rating . | . . . Part Schematics Acquired . | . . . Parts Built . | . . . Authchips . | . . . Time . | . . . Total Part Build Rating . | . . . Part Studies Acquired . | . . . Parts Repaired . | . . . Time . | . . . Parts Recycled . | . . . Recycled Matter . | . . . Retrieved Matter . | . . . Retrieved Components . | . . . Parts Scanalyzed . | . . . Part Schematics Acquired . | . . . Parts Damaged . | . . . Bothacking | -11 -10 -10 ------------ Run | Yrd Mat Min Used RIF Installer . | . . . Robots Hacked . | . . . Non-combat . | . . . Combat . | . . . Robot Hacks Applied . | . . . Relay Couplers Released . | . . . Fabnet Peak Effective % . | . . . Robots Rewired . | . . . Allies Hacked . | . . . Hacks Repelled . | . . . Allies | -11 -10 -10 -------- Run | Yrd Mat Min Total Allies . | . . . Largest Group . | . . . Highest-Rated Group . | . . . Highest-Rated Ally . | . . . Total Orders . | . . . Ally Attacks . | . . . Total Damage . | . . . Kills . | . . . Allies Corrupted . | . . . Allies Melted . | . . . Intel | -11 -10 -10 ------- Run | Yrd Mat Min Active Infowar (turns) 30 | 5 25 . Terrain 30 | 5 25 . Robot Analysis Total . | . . . Derelict Logs Recovered . | . . . Drone Launches . | . . . Drone Recoveries . | . . . Exploration | -11 -10 -10 ------------- Run | Yrd Mat Min Turns Passed 810 | 78 452 280 Spaces Moved 543 | 47 313 183 Core 8 | 8 . . Treads . | . . . Legs 535 | 39 313 183 Wheels . | . . . Hover . | . . . Flight . | . . . Fastest Speed 50 | 50 120 120 Average Speed 118 | 108 120 120 Slowest Speed 120 | 120 120 120 Overloaded Moves . | . . . Propulsion Burnouts . | . . . Robots Hopped . | . . . Potential Cave-ins . | . . . Cave-ins Triggered . | . . . Exploration Rate (%) 37 | 3 58 50 Regions Visited 2 Branch Regions 1 Pre-discovered Areas . | . . . Known Exits Taken . | . . . Unknown Exits Taken 2 | 1 1 . Scrap Searched 1 | . . 1 Spaces Dug . | . . . Terrain Destroyed . | . . . Melee . | . . . Projectile . | . . . AOE . | . . . Terrain Rammed . | . . . Walls Destroyed . | . . . Machines Disabled . | . . . Actions | -11 -10 -10 --------- Run | Yrd Mat Min Total 626 | 69 346 211 Wait . | . . . Move 541 | 46 312 183 Hop . | . . . Pick Up 17 | 13 3 1 Fast Attach . | . . . Attach 12 | 7 2 3 Detach 1 | . 1 . Swap 1 | . . 1 Drop 4 | . 3 1 Fire 50 | 3 25 22 Melee . | . . . Ram . | . . . Kick . | . . . Crush . | . . . Escape Stasis . | . . . Rewire . | . . . Trap . | . . . Miscellaneous . | . . . Route ------- -11/Scrapyard -10/Materials (discovered 3 exits: [*Mat x2] / [*Min]) -10/Mines History --------- Turn | Location | Event 27 | -11/Scrapyard | Discovered new exit (range 16) 79 | -11/Scrapyard | Entered Materials 289 | -10/Materials | Discovered new exit (range 12) 301 | -10/Materials | Build established: Mutant 454 | -10/Materials | Discovered new exit (range 12) 513 | -10/Materials | Discovered new exit (range 14) 531 | -10/Materials | Entered Mines 660 | -10/Mines | Met a Derelict bent on vengeance 765 | -10/Mines | Assembled infested the area 797 | -10/Mines | Core integrity fell below 50% 809 | -10/Mines | Core integrity fell below 20% 811 | -10/Mines | Destroyed by as-84013 with Assembled Maul Last Messages --------------- K-01 Serf cleans the Matter Pump. D-53 Grenadier destroyed. K-01 Serf cleans the Matter Pump. The unstable cave ceiling collapses. Destroyed Asb. Hover Unit. K-01 Serf cleans the Matter Pump. The unstable cave ceiling collapses. Knocked back. as-02105 destroyed. Switching to secondary target: as-20119. The unstable cave ceiling collapses. Ion Engine destroyed. System corrupted by crushing effect (+3). The unstable cave ceiling collapses. Aluminum Leg destroyed. Lgt. Assault Rifle destroyed. The unstable cave ceiling collapses. Sml. Storage Unit destroyed. System corrupted by crushing effect (+5). Knocked back. Map ----- +----------------------------------------------------+ | # #????????# #???????????????????????????????? | | #????????# #???###?????????????????????????? | | #????????# #### ##????????????????????????? | | #######???????## ##???????????????????????? | | ?????????????## #???????????????????????? | | ????????????## ## #???????????????????????? | | ??????????### #### #???????????????????????? | | ?????????## ##??# #???????????????????????? | | ?????????# #???## ##???????????????????????? | | ?????????# #?????####????????????????????????? | | ?????????## ##????????????????????????????????? | | ??????????## #????????????????????????????????? | | ???????????# #???????????????????????????????? | | ???????????# #???????????????????????????????? | | #####??????# #???????????????????????????????? | | # ##?????# ##???????????????????????????????? | | ##????## ##?####???????????????????????????? | | ##########?## ##?????????#???##???????????? | | #??# #???????? #?? #???????????? | | #??# ##?###### ## ##??????????? | | ####### #???# ### #??????????? | | #?????# ##### # a= ?????????????? | | #?????# """ # a #???????????????? | | ##?????# """ aaa #???????????????? | | ###??????## #### """ a % #???????????????? | | ###????????# #??# @## ####???????????????? | | ??????????# ??# a # #???????????????? | | ?????????# #?## ##???????????????? | | ????????# ??## ### ##????????????????? | | ???????# ???#####?###$##?????????????????? | | ?????? ??????????? #??????????????????? | | ????? ??????????? ??????????????????? | | ???? ?????????? #?????????????????? | | ????# ## ?????????? #?????????????????? | | ?????###?## ##?????????? ##?????????????????? | | ??????????## ##???????????##??????????????????? | | ???????????## ?????????????????????????????????? | | ????????????? ?????????????????????????????????? | | ?????????????????????????????????????????????????? | | ?????????????????????????????????????????????????? | | ?????????????????????????????????????????????????? | | ?????????????????????????????????????????????????? | | ?????????????????????????????????????????????????? | | ?????????????????????????????????????????????????? | | ?????????????????????????????????????????????????? | | ?????????????????????????????????????????????????? | | ?????????????????????????????????????????????????? | | ?????????????????????????????????????????????????? | | ?????????????????????????????????????????????????? | | ?????????????????????????????????????????????????? | +----------------------------------------------------+ Best States ------------- Heat Dissipation 25 Energy Generation 10 Energy Capacity 250 Matter Stores 270 Matter Capacity 300 Sight Range 16 Terrain Scan Range 16 Terrain Scan Density 10 Armor Coverage 150 Evasion (%) 55 Item Schematics ----------------- None Robot Schematics ------------------ None Fabricated ------------ Nothing Repaired ---------- Nothing Studied --------- None Alien Tech Used ----------------- None Achievements -------------- None Challenges ------------ None Game ------ Seed BeamPhaseFlightbrick Manual? 0 Play Time 00:14:31 Cumulative 3.9 hours Start 2025.10.23 @ 16:21:35 End 2025.10.23 @ 16:33:30 Sessions 1 Manual Loads 0 Difficulty Rogue Special Mode None Game No. 9 Rogue 9 Adventurer 0 Explorer 0 Win Type - Total 0 Types 0/0/0/0/0/0/0/0/0/0 Lore% 9 Gallery% 7 Achievement% 6 Wizard Run 0 Options --------- Layout 0 ASCII 0 Keyboard 0 Movement Mouse Keybinds 0 Fullscreen 1 Font 18/SmallcapsGlow Map View 76x50 Zoom Use 0% Tactical HUD 0 Map Filters NONE Filters NONE Steam 1 RUN: 6d2939fc-c5d2-4c12-8e94-801c33aaf6e0